bitfinex/quotes_SOLUSD_20241113
["timestamp","ask_amount","ask_price","bid_price","bid_amount"]
[1731517379045,12.3946,218.89,218.73,0.12549]
[1731517379241,12.3946,218.89,218.75,0.12549]
[1731517379450,12.3946,218.89,218.76,0.91366857]
[1731517379749,12.3946,218.89,218.72,0.91368485]
[1731517379933,12.3946,218.89,218.73,0.91380271]
[1731517380240,12.3946,218.89,218.74,0.12549]
[1731517380439,12.3946,218.89,218.75,0.91362881]
[1731517380847,12.3946,218.89,218.76,0.12549]
[1731517381350,12.3946,218.89,218.77,0.91364279]
[1731517381930,12.3946,218.89,218.78,20.12549]
[1731517382127,12.3946,218.89,218.8,0.12549]
[1731517382429,12.3946,218.89,218.81,0.91346904]
[1731517382743,12.3946,218.89,218.82,0.12549]
[1731517382926,12.3946,218.89,218.83,0.91340798]
[1731517383328,12.3946,218.89,218.84,0.12549]
[1731517384429,0.2640583,218.9,218.84,0.12549]
[1731517384757,0.2640583,218.9,218.87,0.12549]
[1731517385051,0.2640583,218.9,218.88,4.583]
[1731517385344,0.2640583,218.9,218.89,0.91326232]
[1731517386053,0.2640583,218.9,218.87,4.583]
[1731517386352,0.2640583,218.9,218.88,0.12549]
[1731517386545,0.2640583,218.9,218.86,4.583]
[1731517386756,0.2640583,218.9,218.86,5.49627688]
[1731517386935,0.2640583,218.9,218.86,0.91327688]
[1731517387630,0.2640583,218.9,218.87,20.0]
[1731517388030,0.2640583,218.9,218.88,0.91319909]
[1731517388550,0.2640583,218.9,218.85,20.0]
[1731517388551,0.2640583,218.9,218.89,0.91319755]
[1731517388758,0.2640583,218.9,218.89,1.03868755]
[1731517389059,0.2640583,218.9,218.87,20.0]
[1731517389237,0.2640583,218.9,218.85,0.91318928]
[1731517389434,0.2640583,218.9,218.86,0.12549]
[1731517389932,0.2640583,218.9,218.85,0.91318928]
[1731517390137,0.2640583,218.9,218.84,5.61930104]
[1731517390343,0.2640583,218.9,218.82,6.22255897]
[1731517390549,0.2640583,218.9,218.84,6.22255897]
[1731517390746,0.2640583,218.9,218.83,0.91338269]
[1731517390948,0.2640583,218.9,218.8,0.12549]
[1731517391147,0.2640583,218.9,218.82,70.0]
[1731517391353,0.2640583,218.9,218.84,0.12549]
[1731517391535,0.2640583,218.9,218.86,0.12549]
[1731517392758,0.2640583,218.9,218.89,70.12549]
[1731517392935,0.2640583,218.9,218.89,71.03856971]
[1731517393132,0.2640583,218.9,218.89,77.26112868]
[1731517393452,30.07237528,219.0,218.98,0.12549]
[1731517393637,30.07237528,219.0,218.98,20.0]
[1731517393837,30.07237528,219.0,218.94,70.0]
[1731517394150,30.07237528,219.0,218.95,20.12549]
[1731517394449,30.07237528,219.0,218.91,20.0]
[1731517394650,30.07237528,219.0,218.92,0.12549]
[1731517395150,30.07237528,219.0,218.89,20.0]
[1731517395356,30.07237528,219.0,218.88,70.0]
[1731517397337,30.07237528,219.0,218.9,6.73923862]
[1731517397658,30.07237528,219.0,218.9,5.70070781]
[1731517398168,30.07237528,219.0,218.87,4.583]
[1731517399034,30.07237528,219.0,218.88,0.91320606]
[1731517399662,30.07237528,219.0,218.89,4.583]
[1731517400235,12.362,218.99,218.89,4.583]
[1731517400659,12.362,218.99,218.88,4.583]
[1731517401363,12.362,218.99,218.89,0.9132039]
[1731517401542,12.362,218.99,218.9,24.583]
[1731517402240,12.362,218.99,218.9,4.583]
[1731517402442,12.362,218.99,218.89,4.583]
[1731517403050,12.362,218.99,218.87,4.583]
[1731517403364,12.362,218.99,218.86,5.7227238]
[1731517403560,12.362,218.99,218.85,0.12549]
[1731517404063,12.362,218.99,218.84,4.583]
[1731517404258,12.362,218.99,218.84,10.28370781]
[1731517404458,12.362,218.99,218.86,4.583]
[1731517404640,12.362,218.99,218.83,5.62499396]
[1731517404843,12.362,218.99,218.81,227.87048385]
[1731517405045,12.362,218.99,218.84,4.583]
[1731517405480,12.362,218.99,218.84,10.28370781]
[1731517405944,20.0,218.96,218.75,4.583]
[1731517406143,20.0,218.96,218.74,80.9565307]
[1731517406370,0.91414037,218.95,218.76,5.39571336]
[1731517406662,0.91414037,218.95,218.74,5.56081734]
[1731517406862,0.91414037,218.95,218.75,5.39571336]
[1731517407166,0.91414037,218.95,218.75,11.32034718]
[1731517407462,0.91414037,218.95,218.77,4.583]
[1731517408046,44.9239,218.94,218.78,0.91359581]
[1731517408249,44.9239,218.94,218.8,70.0]
[1731517408574,44.9239,218.94,218.82,0.12549]
[1731517408766,44.9239,218.94,218.84,0.12549]
[1731517408971,44.9239,218.94,218.85,0.9133341]
[1731517409351,44.9239,218.94,218.86,24.583]
[1731517409767,44.9239,218.94,218.88,4.583]
[1731517410179,44.9239,218.94,218.88,24.583]
[1731517410371,30.07237528,219.0,218.89,0.12549]
[1731517410668,30.07237528,219.0,218.94,4.583]
[1731517410876,0.17226891,219.11,219.0,0.78899783]
[1731517411777,0.17226891,219.11,219.02,4.583]
[1731517411974,0.17226891,219.11,219.02,0.12549]
[1731517412165,0.17226891,219.11,219.04,4.583]
[1731517412367,0.17226891,219.11,219.06,4.583]
[1731517412578,0.17226891,219.11,219.03,20.0]
[1731517412875,0.17226891,219.11,219.04,5.63365897]
[1731517413176,0.17226891,219.11,219.06,4.583]
[1731517413670,0.17226891,219.11,219.06,10.63208842]
[1731517413879,0.17226891,219.11,219.01,20.0]
[1731517414058,45.0033,219.1,219.01,4.583]
[1731517414468,45.0033,219.1,219.01,24.583]
[1731517415054,45.0033,219.1,219.01,4.583]
[1731517415277,13.2806,219.1,219.0,20.78899783]
[1731517415486,46.1408,219.1,219.01,4.583]
[1731517416059,46.1408,219.1,218.97,4.583]
[1731517416255,46.1408,219.1,219.0,4.583]
[1731517417176,0.17226891,219.11,218.93,5.68819794]
[1731517417380,0.17226891,219.11,218.96,4.583]
[1731517417578,0.17226891,219.11,219.02,70.0]
[1731517417883,0.17226891,219.11,219.03,5.80328072]
[1731517418186,0.17226891,219.11,219.04,0.12549]
[1731517418360,0.17226891,219.11,219.06,4.583]
[1731517418555,0.17226891,219.11,219.08,24.583]
[1731517418961,0.17226891,219.11,219.08,30.65711405]
[1731517419156,0.17226891,219.11,219.1,4.583]
[1731517419783,0.17226891,219.11,219.1,30.78260405]
[1731517419952,0.17226891,219.11,219.1,33.3280192]
[1731517420763,0.17226891,219.11,219.1,42.91043692]
[1731517421377,0.04686891,219.11,219.1,70.45108137]
[1731517421675,1.01414037,219.39,219.1,70.45108137]
[1731517421676,32.4655,219.48,219.21,70.0]
[1731517421861,45.0397,219.33,219.22,4.583]
[1731517422060,45.0397,219.33,219.12,70.0]
[1731517422275,45.0397,219.33,219.05,12.3445]
[1731517422276,0.12549,219.31,219.06,70.0]
[1731517422569,0.91414037,219.32,219.11,0.12549]
[1731517422761,1.01414037,219.32,219.11,0.12549]
[1731517422962,21.11414037,219.32,219.09,4.583]
[1731517423163,21.01414037,219.32,219.09,4.583]
[1731517423372,0.91414037,219.32,219.1,70.12549]
[1731517423569,0.91414037,219.32,219.14,20.12549]
[1731517423973,45.0397,219.33,219.17,20.0]
[1731517424780,45.1397,219.33,219.15,0.91200931]
[1731517424962,0.91414037,219.32,219.1,70.0]
[1731517425162,45.0397,219.33,219.14,70.0]
[1731517425363,45.0397,219.33,219.15,0.12549]
[1731517425664,33.2368,219.25,219.07,5.75452392]
[1731517425887,33.2368,219.2,219.01,70.0]
[1731517426060,0.91414037,219.19,218.99,4.583]
[1731517426256,20.91414037,219.19,218.97,5.50716898]
[1731517426482,21.01414037,219.19,218.95,70.0]
[1731517426665,0.1,219.13,218.89,18.240357]
[1731517426861,31.1092,219.12,218.88,70.0]
[1731517427063,31.1092,219.12,218.91,70.0]
[1731517427064,0.91414037,219.11,218.91,70.0]
[1731517427282,31.1092,219.12,218.91,74.583]
[1731517427475,0.91414037,219.11,218.91,74.583]
[1731517427658,35.83386795,219.06,218.82,70.0]
[1731517427862,31.63854037,219.05,218.78,4.583]
[1731517428065,20.0,219.04,218.8,70.0]
[1731517428366,0.91414037,219.03,218.85,0.12549]
[1731517428562,30.6244,219.05,218.87,70.0]
[1731517428758,30.6244,219.05,218.9,70.0]
[1731517428963,30.6244,219.05,218.91,0.12549]
[1731517429563,30.6244,219.05,218.91,20.12549]
[1731517429760,30.6244,219.05,218.88,4.583]
[1731517429965,30.6244,219.05,218.89,0.91312536]
[1731517430178,30.6244,219.05,218.88,4.583]
[1731517430573,30.6244,219.05,218.89,0.12549]
[1731517431267,30.6244,219.05,218.87,70.0]
[1731517431268,0.12549,219.16,219.04,20.0]
[1731517431594,0.12549,219.16,219.07,4.583]
[1731517431790,0.12549,219.16,219.08,0.12549]
[1731517432083,0.12549,219.16,219.06,20.0]
[1731517432084,0.12549,219.16,219.03,20.0]
[1731517432276,0.12549,219.16,219.02,4.583]
[1731517432471,0.12549,219.16,219.01,4.583]
[1731517432779,0.12549,219.16,218.99,81.96109142]
[1731517432780,0.12549,219.16,219.04,0.12549]
[1731517432988,0.12549,219.16,219.07,4.583]
[1731517433472,0.12549,219.16,219.08,20.91249625]
[1731517433671,0.12549,219.16,219.09,0.12549]
[1731517433888,0.12549,219.16,219.07,4.583]
[1731517434188,0.12549,219.16,219.05,0.12549]
[1731517434963,0.12549,219.16,219.04,4.583]
[1731517435169,0.12549,219.16,219.03,4.583]
[1731517435369,0.12549,219.16,218.99,4.583]
[1731517435580,1.03963037,219.16,218.99,4.583]
[1731517436179,0.12549,219.16,218.97,0.91278503]
[1731517436383,1.03963037,219.16,218.97,5.49578503]
[1731517436572,0.1,219.14,218.96,5.76680141]
[1731517436779,12.0686,219.12,218.92,5.37674004]
[1731517436991,0.91414037,219.11,218.92,6.28971053]
[1731517437291,33.0337,219.1,218.92,6.28971053]
[1731517437592,0.91414037,219.09,218.91,4.583]
[1731517437884,33.0337,219.1,218.92,6.28978572]
[1731517438084,33.0337,219.1,218.93,5.37674004]
[1731517438290,0.91414037,219.09,218.93,11.26597488]
[1731517438584,0.91414037,219.09,218.93,5.88923484]
[1731517439494,0.22549,219.08,218.89,4.583]
[1731517439690,0.91414037,219.07,218.89,4.583]
[1731517440372,0.91414037,219.07,218.88,4.583]
[1731517440574,1.13963037,219.08,218.88,4.583]
[1731517440782,33.0337,219.1,218.89,10.99843752]
[1731517440993,0.91414037,219.09,218.89,10.87294752]
[1731517441291,0.12549,219.08,218.89,10.87294752]
[1731517441491,0.91414037,219.07,218.89,4.583]
[1731517441699,0.91414037,219.07,218.87,8.77796963]
[1731517441700,0.12549,219.06,218.87,8.77796963]
[1731517441985,0.22549,219.04,218.87,8.77796963]
[1731517442191,20.22549,219.02,218.87,8.77796963]
[1731517442497,0.12549,218.99,218.87,8.77796963]
[1731517442675,13.98904037,219.0,218.87,8.77796963]
[1731517442988,13.0749,219.0,218.91,0.12549]
[1731517443184,13.0749,219.0,218.92,6.28978223]
[1731517443782,13.0749,219.0,218.93,4.583]
[1731517443988,32.9877,219.03,218.94,0.91297111]
[1731517444494,32.9877,219.03,218.91,5.70659185]
[1731517444789,32.9877,219.03,218.88,0.91313793]
[1731517445000,32.9877,219.03,218.88,5.49613793]
[1731517445171,0.91414037,219.02,218.88,4.583]
[1731517445370,0.91414037,219.02,218.87,14.34076002]
[1731517445791,32.9877,219.03,218.88,0.91330939]
[1731517445990,32.9877,219.03,218.88,5.49630939]
[1731517446300,32.9877,219.03,218.87,14.34076002]
[1731517446868,32.9877,219.03,218.88,4.583]
[1731517447393,0.91414037,219.02,218.88,4.583]
[1731517447994,0.12549,219.01,218.88,4.583]
[1731517448218,0.1,218.98,218.87,8.77796963]
[1731517448487,31.6513,218.96,218.8,70.12549]
[1731517448714,31.6513,218.96,218.82,0.12549]
[1731517449174,31.6513,218.96,218.82,10.27128039]
[1731517449370,31.6513,218.96,218.82,11.11331101]
[1731517449579,0.91414037,218.95,218.82,5.56279039]
[1731517449777,0.91414037,218.95,218.8,227.83196419]
[1731517450095,0.91414037,218.95,218.77,8.777969]
[1731517450396,0.91414037,218.95,218.78,4.583]
[1731517450896,20.91414037,218.95,218.76,5.56279039]
[1731517451095,12.89339,218.94,218.75,5.69156861]
[1731517451275,32.4763,218.91,218.71,5.56279039]
[1731517451477,20.91414037,218.9,218.75,14.470102]
[1731517451699,20.91414037,218.9,218.71,227.83196419]
[1731517452029,20.91414037,218.9,218.65,70.0]
[1731517452030,0.2,218.84,218.59,70.0]
[1731517452303,20.2,218.8,218.62,18.267166]
[1731517452593,20.2,218.8,218.6,4.583]
[1731517452594,20.0,218.78,218.6,4.583]
[1731517452802,0.12549,218.76,218.58,18.267166]
[1731517452977,0.91414037,218.75,218.57,0.4342005]
[1731517453177,0.91414037,218.75,218.57,1.34875731]
[1731517453382,0.91414037,218.77,218.57,1.34875731]
[1731517453912,0.91414037,218.77,218.57,11.57450349]
[1731517454479,20.91414037,218.78,218.57,11.57450349]
[1731517455098,20.91414037,218.78,218.57,10.65994668]
[1731517455285,21.01414037,218.78,218.57,0.4342005]
[1731517455806,20.91414037,218.78,218.57,0.4342005]
[1731517455981,21.01414037,218.78,218.57,0.4342005]
[1731517456305,20.91414037,218.78,218.57,0.4342005]
[1731517456596,0.91414037,218.78,218.6,0.12549]
[1731517456799,32.4763,218.79,218.61,0.91427164]
[1731517457101,32.4763,218.79,218.64,0.12549]
[1731517457301,32.4763,218.79,218.66,0.12549]
[1731517457710,32.4763,218.79,218.61,4.84828392]
[1731517457921,32.4763,218.79,218.63,0.12549]
[1731517458398,0.91414037,218.78,218.63,0.12549]
[1731517458900,0.91414037,218.78,218.62,0.12549]
[1731517459304,32.4763,218.79,218.63,0.91428312]
[1731517459604,0.91414037,218.78,218.62,0.12549]
[1731517459801,28.39044037,218.79,218.62,0.12549]
[1731517461201,28.39044037,218.79,218.61,5.71518778]
[1731517461401,28.39044037,218.79,218.58,0.91441929]
[1731517461602,28.39044037,218.79,218.57,0.4342005]
[1731517462100,28.49044037,218.79,218.57,0.4342005]
[1731517462814,28.39044037,218.79,218.57,0.4342005]
[1731517462990,28.39044037,218.79,218.58,20.12549]
[1731517463304,28.39044037,218.79,218.61,20.12549]
[1731517463482,28.39044037,218.79,218.65,0.12549]
[1731517463682,28.39044037,218.79,218.67,0.12549]
[1731517464082,28.39044037,218.79,218.63,4.583]
[1731517464302,28.39044037,218.79,218.63,0.91422922]
[1731517464504,28.39044037,218.79,218.61,20.0]
[1731517464907,23.902374,218.9,218.65,0.1]
[1731517465205,0.12549,218.9,218.65,0.1]
[1731517465498,35.89609166,218.89,218.61,0.1]
[1731517465801,0.12549,218.87,218.6,0.1]
[1731517466679,0.12549,218.87,218.58,0.1]
[1731517466883,0.12549,218.87,218.6,0.1]
[1731517467285,59.67297566,218.85,218.58,20.0]
[1731517467707,59.67297566,218.85,218.59,0.1]
[1731517467892,0.12549,218.81,218.61,0.1]
[1731517468100,23.902374,218.79,218.57,0.5342005]
[1731517468404,23.902374,218.79,218.59,0.1]
[1731517468703,23.902374,218.79,218.57,0.4342005]
[1731517469417,28.472974,218.79,218.57,0.5342005]
[1731517469596,28.472974,218.79,218.57,0.4342005]
[1731517470107,28.472974,218.79,218.58,0.1]
[1731517470404,34.11508014,218.79,218.58,0.1]
[1731517470602,23.902374,218.77,218.58,0.1]
[1731517471109,28.473474,218.77,218.57,0.4342005]
[1731517471305,23.902374,218.73,218.57,0.4342005]
[1731517471486,23.902374,218.71,218.57,0.4342005]
[1731517472013,59.67297566,218.71,218.57,0.4342005]
[1731517472306,38.8536,218.77,218.37,14.457817]
[1731517472307,59.67297566,218.67,218.37,12.7294]
[1731517472493,59.67297566,218.65,218.38,0.1]
[1731517472693,23.902374,218.63,218.4,0.1]
[1731517472891,28.476274,218.63,218.4,0.1]
[1731517473092,23.902374,218.59,218.36,5.53516559]
[1731517473294,23.902374,218.59,218.35,0.5342005]
[1731517473295,23.902374,218.52,218.35,0.4342005]
[1731517473502,35.77060166,218.54,218.35,0.5342005]
[1731517473686,32.897,218.58,218.37,0.1]
[1731517473888,23.902374,218.57,218.35,0.4342005]
[1731517474216,23.902374,218.57,218.35,0.5342005]
[1731517474404,23.902374,218.57,218.37,0.1]
[1731517475090,23.902374,218.57,218.4,0.1]
[1731517476102,32.897,218.58,218.44,0.1]
[1731517476602,32.897,218.58,218.42,0.1]
[1731517476807,0.12549,218.57,218.42,0.1]
[1731517477106,32.897,218.58,218.49,0.1]
[1731517477805,12.2717,218.6,218.49,0.1]
[1731517478889,33.0555,218.64,218.54,0.1]
[1731517479090,1.828408,218.76,218.55,0.1]
[1731517479091,31.1802,218.72,218.55,0.1]
[1731517479807,31.1802,218.72,218.51,0.1]
[1731517479808,31.1802,218.72,218.52,0.1]
[1731517480112,0.12549,218.71,218.52,0.1]
[1731517480289,31.1802,218.72,218.55,0.1]
[1731517480491,31.1802,218.72,218.51,0.2]
[1731517480711,0.12549,218.71,218.53,0.1]
[1731517480907,0.12549,218.71,218.51,0.1]
[1731517481095,31.1802,218.72,218.48,0.1]
[1731517481096,31.1802,218.72,218.56,0.1]
[1731517481300,31.1802,218.72,218.54,0.1]
[1731517481301,31.1802,218.72,218.58,0.1]
[1731517481907,30.4118,218.8,218.61,0.1]
[1731517482113,34.9823,218.8,218.61,0.1]
[1731517482415,34.9823,218.8,218.6,0.1]
[1731517482595,30.4118,218.8,218.62,0.1]
[1731517482791,32.6249,218.87,218.71,0.1]
[1731517483090,32.6249,218.87,218.65,0.12549]
[1731517483091,32.6249,218.87,218.73,0.1]
[1731517484514,30.6104,218.98,218.77,0.1]
[1731517485212,0.12549,218.95,218.66,20.0]
[1731517485417,0.12549,218.93,218.68,0.1]
[1731517486105,0.12549,218.92,218.67,0.1]
[1731517486989,23.902374,218.9,218.67,0.1]
[1731517488094,23.902374,218.9,218.63,0.1]
[1731517488311,23.902374,218.9,218.6,4.783]
[1731517488615,0.12549,218.87,218.61,0.1]
[1731517488789,0.12549,218.85,218.61,0.1]
[1731517488993,23.902374,218.85,218.61,0.1]
[1731517489489,23.776884,218.83,218.59,0.1]
[1731517489707,66.21530166,218.84,218.58,0.1]
[1731517489910,23.776884,218.81,218.56,0.1]
[1731517490298,23.776884,218.83,218.6,0.1]
[1731517490712,12.6977,218.95,218.68,0.1]
[1731517491010,51.75660166,218.94,218.62,0.1]
[1731517491213,51.75660166,218.94,218.65,0.1]
[1731517491395,35.77060166,218.9,218.65,0.1]
[1731517491591,11.4186,218.94,218.65,0.1]
[1731517491592,4.5685,218.89,218.65,0.1]
[1731517491904,0.12549,218.88,218.65,0.1]
[1731517492107,23.902374,218.88,218.63,0.1]
[1731517492399,35.77060166,218.86,218.61,0.1]
[1731517492598,23.776884,218.85,218.61,0.1]
[1731517492802,23.776884,218.85,218.65,0.1]
[1731517493107,4.5674,218.94,218.65,0.2]
[1731517493299,0.12549,218.93,218.65,0.2]
[1731517493502,10.18387819,218.94,218.65,0.2]
[1731517493697,4.5674,218.94,218.68,0.1]
[1731517493895,4.5674,218.94,218.71,0.1]
[1731517494097,4.5674,218.94,218.73,0.1]
[1731517494604,0.12549,218.93,218.7,12.5738]
[1731517495989,23.902374,218.93,218.7,12.5738]
[1731517496191,0.12549,218.91,218.7,12.5738]
[1731517496419,35.77060166,218.86,218.62,12.0818]
[1731517496590,23.902374,218.85,218.62,12.0818]
[1731517497596,23.902374,218.83,218.62,12.0818]
[1731517498613,7.10729902,218.82,218.62,12.1818]
[1731517498819,4.5695,218.84,218.62,12.1818]
[1731517499019,0.12549,218.83,218.62,12.1818]
[1731517499402,35.89609166,218.83,218.62,12.0818]
[1731517499714,0.12549,218.81,218.62,12.0818]
[1731517499927,23.902374,218.81,218.62,12.0818]
[1731517500719,59.67297566,218.81,218.62,12.0818]
[1731517500913,0.12549,218.74,218.55,12.6579]
[1731517501114,23.902374,218.74,218.55,12.6579]
[1731517501612,0.12549,218.7,218.48,12.3159]
[1731517501810,23.902374,218.7,218.48,12.3159]
[1731517502010,23.902374,218.68,218.48,12.3159]
[1731517502340,23.902374,218.68,218.5,0.1]
[1731517502341,0.12549,218.68,218.5,0.1]
[1731517502505,23.776884,218.72,218.55,0.1]
[1731517502704,5.71063294,218.74,218.5,0.1]
[1731517502705,4.5711,218.77,218.58,0.1]
[1731517503118,0.12549,218.76,218.56,0.1]
[1731517503420,5.70750384,218.8,218.6,0.1]
[1731517503619,51.67573828,218.87,218.62,0.1]
[1731517503821,4.5694,218.85,218.67,0.1]
[1731517504137,10.0990802,218.87,218.68,0.1]
[1731517504301,12.8292,218.88,218.68,0.1]
[1731517504506,12.8292,218.88,218.7,0.1]
[1731517504704,5.68659724,218.9,218.72,0.1]
[1731517504920,5.68659724,218.9,218.8,12.3159]
[1731517505318,4.5659,219.02,218.8,12.3159]
[1731517505621,40.17220495,219.11,218.84,0.1]
[1731517505927,35.77060166,219.05,218.82,30.4926]
[1731517506125,35.77060166,219.07,218.82,30.5926]
[1731517506307,35.77060166,219.09,218.86,0.1]
[1731517506826,4.5641,219.1,218.86,0.1]
[1731517507332,10.23559081,219.11,218.9,0.1]
[1731517507626,0.4342005,219.12,218.9,0.2]
[1731517507828,0.4342005,219.12,218.9,0.1]
[1731517508312,0.4342005,219.12,218.92,0.1]
[1731517508514,4.9980005,219.12,218.92,0.1]
[1731517509024,0.4342005,219.12,218.92,0.1]
[1731517509228,4.9980005,219.12,218.92,0.1]
[1731517509438,4.9980005,219.12,218.9,0.1]
[1731517509439,59.54748566,219.11,218.86,0.1]
[1731517509607,0.12549,219.06,218.82,30.4926]
[1731517509814,23.902374,219.06,218.82,30.4926]
[1731517510120,35.77060166,219.05,218.82,30.4926]
[1731517510319,23.902374,219.04,218.82,30.4926]
[1731517510826,23.776884,219.04,218.82,30.4926]
[1731517511030,0.12549,219.01,218.82,30.4926]
[1731517512118,0.12549,218.99,218.82,30.4926]
[1731517512318,23.902374,218.99,218.82,30.4926]
[1731517513030,23.902374,218.99,218.92,35.73778565]
[1731517513219,23.776884,218.99,218.94,35.73778565]
[1731517513416,23.776884,218.96,218.88,35.73778565]
[1731517513627,0.12549,218.95,218.86,35.73778565]
[1731517513921,0.12549,218.93,218.86,35.73778565]
[1731517514108,15.9825,218.99,218.8,12.3159]
[1731517514109,0.4342005,219.12,219.0,0.1]
[1731517514311,0.4342005,219.12,219.11,71.4755713]
[1731517514511,0.4342005,219.12,219.11,35.73778565]
[1731517514733,0.5596905,219.12,219.11,35.73778565]
[1731517514912,0.4342005,219.12,218.99,13.0081]
[1731517515229,4.9980005,219.12,219.08,35.73778565]
[1731517515426,4.9980005,219.12,219.06,35.73778565]
[1731517515628,0.12549,219.11,219.04,35.73778565]
[1731517516229,0.12549,219.11,219.06,35.73778565]
[1731517516729,0.12549,219.11,218.94,12.8184]
[1731517516730,14.86209289,219.11,219.08,35.73778565]
[1731517516924,0.4342005,219.12,219.1,35.73778565]
[1731517517122,0.4342005,219.12,219.08,35.73778565]
[1731517517123,4.9980005,219.12,219.08,35.73778565]
[1731517517318,0.12549,219.11,219.08,35.73778565]
[1731517517511,4.68959,219.11,219.06,35.73778565]
[1731517517730,4.68959,219.11,219.04,35.73778565]
[1731517518235,4.68959,219.11,219.08,35.73778565]
[1731517518634,0.12549,219.09,219.08,35.73778565]
[1731517518819,0.12549,219.09,219.04,35.73778565]
[1731517519137,0.12549,219.09,219.08,35.73778565]
[1731517519337,0.4342005,219.12,219.08,35.73778565]
[1731517519338,24.2110845,219.12,219.08,35.73778565]
[1731517519521,4.9980005,219.12,219.1,35.73778565]
[1731517519830,0.12549,219.11,219.1,35.73778565]
[1731517520037,0.12549,219.11,219.06,35.73778565]
[1731517520238,4.68939,219.11,219.08,35.73778565]
[1731517520729,0.12549,219.09,219.08,35.73778565]
[1731517521647,24.2110845,219.12,219.08,35.73778565]
[1731517521819,0.12549,219.11,219.08,35.73778565]
[1731517522137,38.37503356,219.11,219.04,35.73778565]
[1731517522322,23.902374,219.09,219.06,35.73778565]
[1731517523229,23.902374,219.09,219.04,35.73778565]
[1731517523426,23.902374,219.09,218.94,12.8184]
[1731517523427,0.12549,219.07,219.02,35.73778565]
[1731517523732,23.902374,219.07,219.0,35.73778565]
[1731517523935,23.902374,219.07,219.04,35.73778565]
[1731517524440,23.902374,219.07,219.02,35.73778565]
[1731517524732,23.902374,219.05,219.04,35.73778565]
[1731517525920,23.776884,219.06,219.02,35.73778565]
[1731517526120,0.12549,219.05,219.02,35.73778565]
[1731517526321,4.5648,219.07,219.04,35.73778565]
[1731517526522,4.5639,219.11,219.06,35.73778565]
[1731517526717,0.12549,219.1,219.04,35.73778565]
[1731517526922,0.12549,219.1,219.02,35.73778565]
[1731517527125,35.86327565,219.1,219.0,35.73778565]
[1731517527324,0.12549,219.07,218.98,35.73778565]
[1731517527732,69.53180599,219.07,218.88,13.0546]
[1731517528139,0.12549,219.05,218.88,13.0546]
[1731517528336,0.12549,219.03,218.88,13.0546]
[1731517528539,59.62304643,219.03,218.88,13.0546]
[1731517528721,69.53180599,219.03,218.88,13.0546]
[1731517529220,69.53180599,219.03,218.78,0.1]
[1731517529425,0.12549,218.98,218.79,13.0546]
[1731517529741,23.902374,218.98,218.81,0.1]
[1731517529923,23.902374,218.98,218.79,13.1546]
[1731517529924,23.902374,218.98,218.83,0.1]
[1731517530122,35.84616243,218.99,218.79,13.0546]
[1731517530329,23.902374,218.93,218.79,13.0546]
[1731517530535,23.902374,218.91,218.79,13.0546]
[1731517530719,23.902374,218.91,218.71,31.5333]
[1731517530923,23.902374,218.89,218.72,12.9849]
[1731517531351,23.902374,218.87,218.72,12.9849]
[1731517531519,23.902374,218.85,218.72,12.9849]
[1731517533037,28.348684,218.73,218.58,0.1]
[1731517533337,0.12549,218.72,218.58,0.1]
[1731517533519,0.12549,218.72,218.55,12.7845]
[1731517533520,23.776884,218.75,218.65,0.1]
[1731517534546,6.96087729,218.83,218.69,0.1]
[1731517534763,4.5691,218.86,218.71,0.1]
[1731517535245,35.72067243,218.85,218.69,0.1]
[1731517535545,6.90250846,218.87,218.71,0.2]
[1731517535738,35.72067243,218.83,218.66,0.1]
[1731517536234,0.12549,218.82,218.63,0.1]
[1731517536423,30.18080192,219.12,218.91,13.2776]